{"text_format":"1","workbook":"xlsx","n_sheets":2,"sheets":["Sheet 1","BDE Values"],"not_rendered":{"charts":0,"images":0,"macros":1,"external_links":0,"defined_names":1,"comments":1,"pivot_tables":0},"unopened":[],"bounds":{"document_bytes":16777216,"sheet_cells":100000,"rows_first":2000,"rows_last":500,"rows_between":2000,"halvings":0,"cell_chars":16384,"cell_head_chars":4096},"cells_cut":0,"cells_raw":0,"read":"whole","date_system":"1900"}

{"sheet":"Sheet 1","index":0,"n_rows":159,"n_cols":51,"rows_kept":159,"cut":false,"hidden":false,"merged":[[9,40,9,45],[10,40,10,45],[11,40,11,45],[13,40,13,45],[12,40,12,45],[4,8,4,9],[4,36,4,38],[6,18,8,18],[6,23,8,23],[6,24,8,24],[5,26,5,31],[6,26,6,27],[6,34,8,34],[6,33,8,33],[6,30,6,31],[6,14,8,14],[6,21,8,21],[6,19,8,19],[6,16,8,16],[6,17,8,17],[43,40,43,45],[40,40,40,45],[14,40,14,45],[15,40,15,45],[17,40,17,45],[18,40,18,45],[16,40,16,45],[42,40,42,45],[41,40,41,45],[19,40,19,45],[20,40,20,45],[21,40,21,45],[22,40,22,45],[23,40,23,45],[25,40,25,45],[26,40,26,45],[6,49,8,49],[6,50,8,50],[0,0,1,1],[8,0,8,1],[6,2,8,2],[6,9,7,10],[6,3,7,4],[6,5,7,6],[6,7,7,8],[0,36,0,38],[2,36,2,38],[3,37,3,38],[1,37,1,38],[4,4,4,5],[4,12,4,13],[6,20,8,20],[37,40,37,45],[38,40,38,45],[39,40,39,45],[24,40,24,45],[33,40,33,45],[34,40,34,45],[35,40,35,45],[36,40,36,45],[32,40,32,45],[27,40,27,45],[28,40,28,45],[29,40,29,45],[30,40,30,45],[31,40,31,45]]}
["LD-268",null,null,null,null,"D=",null,null,null,"D=",null,null,null,"D=",null,null,null,null,null,null,null,null,null,null,null,null,null,null,null,null,null,null,null,null,null,null,"PROJECT",null,null,null,null,"Ditch Spread Sheet V 1.0.1c"]
[null,null,null,null,null,null,null,null,null,null,null,null,null,null,null,null,null,null,null,null,null,null,null,null,null,null,null,null,null,null,null,null,null,null,null,null,null,"BY"]
["       LANE",null,null,null,1,"b",1,null,1,"b",1,null,1,"b",1,null,null,null,null,null,null,null,null,null,null,null,null,null,null,null,null,null,null,null,null,null,"LOCATION"]
["      SIDE",null,null,null,"---","---","---",null,"---","---","---",null,"---","---","---",null,null,null,null,null,null,null,null,null,null,null,null,null,null,null,null,null,null,null,null,null,null,"DATE"]
[null,null,null,null,"Typ. Section ",null,1,null,"Typ. Section",null,2,null,"Typ. Section",null,3,null,null,null,null,null,null,null,null,null,null,null,null,null,null,null,null,null,null,null,null,null,"SHEET"]
[null,null,null,null,null,null,null,null,null,null,null,null,null,null,null,null,null,null,null,null,null,"Earth n=",0.03,null,null,null,"Protective Lining"]
[null,null,"FLOW LENGTH (ft)",0.9,null,0.5,null,0.3,null,"CA",null,null,null,null,"TYP. SECTION",null,"Run Left","Run right","Angle left","Angle right","Bottom width","ALLOW   VEL.",null,"Dep. (ft)","Goal Q2 (cfs)",null,"n=0.05",null,null,null,"n=0.015",null,null,"Goal  Q10 (cfs)","V10 (ft/sec)",null,null,null,null,null,null,null,null,null,null,null,null,null,null,"Upstream Elevation ","Dnstream Elevation "]
[null,null,null,null,null,null,null,null,null,null,null,"Tc","I2","Q2",null,"Slope",null,null,null,null,null,null,"VEL.",null,null,"goal Q","VEL","DEP","GS DEP","Goal Q","VEL","DEP","GS DEP",null,null,"I10","Q10","DEP","GS DEP"]
["STA. TO STA.",null,null,"A (ac)","CA","A (ac)","CA","A (ac)","CA","INCR.","ACC.","(min)",null,"(cfs)",null,"(Ft/Ft)",null,null,null,null,null,null,"(ft/sec)",null,null,"(cfs)","(ft/sec)","(ft)","(ft)","(cfs)","(ft/sec)","(ft)","(ft)",null,null,null,"(cfs)","(ft)","(ft)","REMARKS"]
[null,null,{"$f":"ABS(B10-A10)","v":0},null,{"$f":"D10*$D$7","v":0},null,{"$f":"F10*$F$7","v":0},null,{"$f":"H10*$H$7","v":0},{"$f":"I10+G10+E10","v":0},{"$f":"J10","v":0},null,{"$f":"IF(L10=0,\"\",$AP$49/(L10+$AP$50)^$AP$51)","v":""},{"$f":"IF(L10=0,\"\",M10*K10)","v":""},null,null,{"$f":"IF(O10=1,$E$4,IF(O10=2,$I$4,(IF(O10=3,$M$4,\"\"))))","v":""},{"$f":"IF(O10=1,$G$4,IF(O10=2,$K$4,(IF(O10=3,$O$4,\"\"))))","v":""},{"$f":"DEGREES(ATAN(1/(Q10)))","v":{"$error":"#VALUE!"}},{"$f":"DEGREES(ATAN(1/(R10)))","v":{"$error":"#VALUE!"}},{"$f":"IF(O10=1,IF($F$4=\"---\",0,$F$4),IF(O10=2,IF($J$4=\"---\",0,$J$4),(IF(O10=3,IF($N$4=\"---\",0,$N$4),0))))","v":0},2,{"$f":"IF(X10=0,\"\",N10/((0.5*X10^2*(Q10+R10))+(U10*X10)))","v":""},0,{"$f":"((0.5*(X10^2)*(Q10+R10)+(U10*X10))*((((0.5*(X10^2)*(Q10+R10))+(U10*X10))/((X10/SIN(RADIANS(S10)))+(X10/SIN(RADIANS(T10)))+U10))^(2/3))*(P10^0.5)*1.486)/$W$6","v":{"$error":"#VALUE!"}},{"$f":"((0.5*(AC10^2)*(Q10+R10)+(U10*AC10))*((((0.5*(AC10^2)*(Q10+R10))+(U10*AC10))/((AC10/SIN(RADIANS(S10)))+(AC10/SIN(RADIANS(T10)))+U10))^(2/3))*(P10^0.5)*1.486)/0.05","v":{"$error":"#VALUE!"}},{"$f":"IF(AC10=0,0,N10/((0.5*AC10^2*(Q10+R10))+(U10*AC10)))","v":0},{"$f":"IF(AC10=0,\"\",AC10)","v":""},0,{"$f":"((0.5*(AG10^2)*(Q10+R10)+(U10*AG10))*((((0.5*(AG10^2)*(Q10+R10))+(U10*AG10))/((AG10/SIN(RADIANS(S10)))+(AG10/SIN(RADIANS(T10)))+U10))^(2/3))*(P10^0.5)*1.486)/0.015","v":{"$error":"#VALUE!"}},{"$f":"IF(AG10=0,0,N10/((0.5*AG10^2*(Q10+R10))+(U10*AG10)))","v":0},{"$f":"IF(AG10=0,\"\",AG10)","v":""},0,{"$f":"IF(AM10=0,0,((0.5*(AM10^2)*(Q10+R10)+(U10*AM10))*((((0.5*(AM10^2)*(Q10+R10))+(U10*AM10))/((AM10/SIN(RADIANS(S10)))+(AM10/SIN(RADIANS(T10)))+U10))^(2/3))*(P10^0.5)*1.486)/$W$6)","v":0},{"$f":"IF(AM10=0,0,AK10/((0.5*AM10^2*(Q10+R10))+(U10*AM10)))","v":0},{"$f":"IF(AM10=0,0,$AQ$49/(L10+$AQ$50)^$AQ$51)","v":0},{"$f":"IF(AM10=0,0,AJ10*K10)","v":0},{"$f":"IF(AM10=0,\"\",AM10)","v":""},0,null,null,null,null,null,null,null,null,{"$f":"A10","v":0},{"$f":"B10","v":0}]
[null,null,null,null,null,null,null,null,null,null,null,null,null,null,null,null,null,null,null,null,null,null,null,null,null,null,null,null,null,null,null,null,null,null,null,null,null,null,null,null,null,null,null,null,null,null,null,0,0,{"$f":"AY10","v":0}]
[null,null,null,null,null,null,null,null,null,null,null,null,null,null,null,null,null,null,null,null,null,null,null,null,null,null,null,null,null,null,null,null,null,null,null,null,null,null,null,null,null,null,null,null,null,null,null,0,0,0]
[null,null,null,null,null,null,null,null,null,null,null,null,null,null,null,null,null,null,null,null,null,null,null,null,null,null,null,null,null,null,null,null,null,null,null,null,null,null,null,null,null,null,null,null,null,null,null,0,0,0]
[null,null,null,null,null,null,null,null,null,null,null,null,null,null,null,null,null,null,null,null,null,null,null,null,null,null,null,null,null,null,null,null,null,null,null,null,null,null,null,null,null,null,null,null,null,null,null,0,0,0]
[null,null,null,null,null,null,null,null,null,null,null,null,null,null,null,null,null,null,null,null,null,null,null,null,null,null,null,null,null,null,null,null,null,null,null,null,null,null,null,null,null,null,null,null,null,null,null,0,0,0]
[null,null,null,null,null,null,null,null,null,null,null,null,null,null,null,null,null,null,null,null,null,null,null,null,null,null,null,null,null,null,null,null,null,null,null,null,null,null,null,null,null,null,null,null,null,null,null,0,0,0]
[null,null,null,null,null,null,null,null,null,null,null,null,null,null,null,null,null,null,null,null,null,null,null,null,null,null,null,null,null,null,null,null,null,null,null,null,null,null,null,null,null,null,null,null,null,null,null,0,0,0]
[null,null,null,null,null,null,null,null,null,null,null,null,null,null,null,null,null,null,null,null,null,null,null,null,null,null,null,null,null,null,null,null,null,null,null,null,null,null,null,null,null,null,null,null,null,null,null,0,0,0]
[null,null,null,null,null,null,null,null,null,null,null,null,null,null,null,null,null,null,null,null,null,null,null,null,null,null,null,null,null,null,null,null,null,null,null,null,null,null,null,null,null,null,null,null,null,null,null,0,0,0]
[null,null,null,null,null,null,null,null,null,null,null,null,null,null,null,null,null,null,null,null,null,null,null,null,null,null,null,null,null,null,null,null,null,null,null,null,null,null,null,null,null,null,null,null,null,null,null,0,0,0]
[null,null,null,null,null,null,null,null,null,null,null,null,null,null,null,null,null,null,null,null,null,null,null,null,null,null,null,null,null,null,null,null,null,null,null,null,null,null,null,null,null,null,null,null,null,null,null,0,0,0]
[null,null,null,null,null,null,null,null,null,null,null,null,null,null,null,null,null,null,null,null,null,null,null,null,null,null,null,null,null,null,null,null,null,null,null,null,null,null,null,null,null,null,null,null,null,null,null,0,0,0]
[null,null,null,null,null,null,null,null,null,null,null,null,null,null,null,null,null,null,null,null,null,null,null,null,null,null,null,null,null,null,null,null,null,null,null,null,null,null,null,null,null,null,null,null,null,null,null,0,0,0]
[null,null,null,null,null,null,null,null,null,null,null,null,null,null,null,null,null,null,null,null,null,null,null,null,null,null,null,null,null,null,null,null,null,null,null,null,null,null,null,null,null,null,null,null,null,null,null,0,0,0]
[null,null,null,null,null,null,null,null,null,null,null,null,null,null,null,null,null,null,null,null,null,null,null,null,null,null,null,null,null,null,null,null,null,null,null,null,null,null,null,null,null,null,null,null,null,null,null,0,0,0]
[null,null,null,null,null,null,null,null,null,null,null,null,null,null,null,null,null,null,null,null,null,null,null,null,null,null,null,null,null,null,null,null,null,null,null,null,null,null,null,null,null,null,null,null,null,null,null,0,0,0]
[null,null,null,null,null,null,null,null,null,null,null,null,null,null,null,null,null,null,null,null,null,null,null,null,null,null,null,null,null,null,null,null,null,null,null,null,null,null,null,null,null,null,null,null,null,null,null,0,0,0]
[null,null,null,null,null,null,null,null,null,null,null,null,null,null,null,null,null,null,null,null,null,null,null,null,null,null,null,null,null,null,null,null,null,null,null,null,null,null,null,null,null,null,null,null,null,null,null,0,0,0]
[null,null,null,null,null,null,null,null,null,null,null,null,null,null,null,null,null,null,null,null,null,null,null,null,null,null,null,null,null,null,null,null,null,null,null,null,null,null,null,null,null,null,null,null,null,null,null,0,0,0]
[null,null,null,null,null,null,null,null,null,null,null,null,null,null,null,null,null,null,null,null,null,null,null,null,null,null,null,null,null,null,null,null,null,null,null,null,null,null,null,null,null,null,null,null,null,null,null,0,0,0]
[null,null,null,null,null,null,null,null,null,null,null,null,null,null,null,null,null,null,null,null,null,null,null,null,null,null,null,null,null,null,null,null,null,null,null,null,null,null,null,null,null,null,null,null,null,null,null,0,0,0]
[null,null,null,null,null,null,null,null,null,null,null,null,null,null,null,null,null,null,null,null,null,null,null,null,null,null,null,null,null,null,null,null,null,null,null,null,null,null,null,null,null,null,null,null,null,null,null,0,0,0]
[null,null,null,null,null,null,null,null,null,null,null,null,null,null,null,null,null,null,null,null,null,null,null,null,null,null,null,null,null,null,null,null,null,null,null,null,null,null,null,null,null,null,null,null,null,null,null,{"$f":"A33","v":0},0,0]
[null,null,null,null,null,null,null,null,null,null,null,null,null,null,null,null,null,null,null,null,null,null,null,null,null,null,null,null,null,null,null,null,null,null,null,null,null,null,null,null,null,null,null,null,null,null,null,0,0,{"$f":"AY33","v":0}]
[null,null,null,null,null,null,null,null,null,null,null,null,null,null,null,null,null,null,null,null,null,null,null,null,null,null,null,null,null,null,null,null,null,null,null,null,null,null,null,null,null,null,null,null,null,null,null,0,0,0]
[null,null,null,null,null,null,null,null,null,null,null,null,null,null,null,null,null,null,null,null,null,null,null,null,null,null,null,null,null,null,null,null,null,null,null,null,null,null,null,null,null,null,null,null,null,null,null,{"$f":"AY35","v":0}]
[]
[]
[]
[null,null,{"$f":"ABS(B40-A40)","v":0},null,{"$f":"D40*$D$7","v":0},null,{"$f":"F40*$F$7","v":0},null,{"$f":"H40*$H$7","v":0},{"$f":"I40+G40+E40","v":0},{"$f":"J40","v":0},null,{"$f":"IF(L40=0,\"\",$AP$49/(L40+$AP$50)^$AP$51)","v":""},{"$f":"IF(L40=0,\"\",M40*K40)","v":""},null,null,{"$f":"IF(O40=1,$E$4,IF(O40=2,$I$4,(IF(O40=3,$M$4,\"\"))))","v":""},{"$f":"IF(O40=1,$G$4,IF(O40=2,$K$4,(IF(O40=3,$O$4,\"\"))))","v":""},{"$f":"DEGREES(ATAN(1/(Q40)))","v":{"$error":"#VALUE!"}},{"$f":"DEGREES(ATAN(1/(R40)))","v":{"$error":"#VALUE!"}},{"$f":"IF(O40=1,IF($F$4=\"---\",0,$F$4),IF(O40=2,IF($J$4=\"---\",0,$J$4),(IF(O40=3,IF($N$4=\"---\",0,$N$4),0))))","v":0},2,{"$f":"IF(X40=0,\"\",N40/((0.5*X40^2*(Q40+R40))+(U40*X40)))","v":""},null,{"$f":"((0.5*(X40^2)*(Q40+R40)+(U40*X40))*((((0.5*(X40^2)*(Q40+R40))+(U40*X40))/((X40/SIN(RADIANS(S40)))+(X40/SIN(RADIANS(T40)))+U40))^(2/3))*(P40^0.5)*1.486)/$W$6","v":{"$error":"#VALUE!"}},{"$f":"((0.5*(AC40^2)*(Q40+R40)+(U40*AC40))*((((0.5*(AC40^2)*(Q40+R40))+(U40*AC40))/((AC40/SIN(RADIANS(S40)))+(AC40/SIN(RADIANS(T40)))+U40))^(2/3))*(P40^0.5)*1.486)/0.05","v":{"$error":"#VALUE!"}},{"$f":"IF(AC40=0,0,N40/((0.5*AC40^2*(Q40+R40))+(U40*AC40)))","v":0},{"$f":"IF(AC40=0,\"\",AC40)","v":""},null,{"$f":"((0.5*(AG40^2)*(Q40+R40)+(U40*AG40))*((((0.5*(AG40^2)*(Q40+R40))+(U40*AG40))/((AG40/SIN(RADIANS(S40)))+(AG40/SIN(RADIANS(T40)))+U40))^(2/3))*(P40^0.5)*1.486)/0.015","v":{"$error":"#VALUE!"}},{"$f":"IF(AG40=0,0,N40/((0.5*AG40^2*(Q40+R40))+(U40*AG40)))","v":0},{"$f":"IF(AG40=0,\"\",AG40)","v":""},null,{"$f":"IF(AM40=0,0,((0.5*(AM40^2)*(Q40+R40)+(U40*AM40))*((((0.5*(AM40^2)*(Q40+R40))+(U40*AM40))/((AM40/SIN(RADIANS(S40)))+(AM40/SIN(RADIANS(T40)))+U40))^(2/3))*(P40^0.5)*1.486)/$W$6)","v":0},{"$f":"IF(AM40=0,0,AK40/((0.5*AM40^2*(Q40+R40))+(U40*AM40)))","v":0},{"$f":"IF(AM40=0,0,$AQ$49/(L40+$AQ$50)^$AQ$51)","v":0},{"$f":"IF(AM40=0,0,AJ40*K40)","v":0},{"$f":"IF(AM40=0,\"\",AM40)","v":""}]
[null,null,null,null,null,null,null,null,null,null,null,null,null,null,null,null,null,null,null,null,null,null,null,null,null,null,null,null,null,null,null,null,null,null,null,null,null,null,null,null,null,null,null,null,null,null,"Reset"]
[null,null,null,null,null,null,null,null,null,null,null,null,null,null,null,null,null,null,null,null,null,null,null,null,null,null,null,null,null,null,null,null,null,null,null,null,null,null,null,null,{"$f":"IF(ABS((Y42-N42)/N42)<0.02,IF(ABS((AH42-AK42)/AK42)<0.02,\" \",\"Data has changed please recalculate all\"),\"Data has changed please recalculate all\")","v":{"$error":"#DIV/0!"}},null,null,null,null,null,0.03]
[null,null,{"$f":"ABS(B43-A43)","v":0},null,{"$f":"D43*$D$7","v":0},null,{"$f":"F43*$F$7","v":0},null,{"$f":"H43*$H$7","v":0},{"$f":"E43+G43+I43","v":0},{"$f":"J43+K42","v":0},{"$f":"L42+(ABS(C42)/IF(AE42=0,IF(AA42=0,W42,AA42),AE42)/60)","v":{"$error":"#DIV/0!"}},{"$f":"$AP$49/(L43+$AP$50)^$AP$51","v":{"$error":"#N/A"}},{"$f":"M43*K43","v":{"$error":"#N/A"}},null,{"$f":"(AX43-AY43)/C43","v":{"$error":"#DIV/0!"}},{"$f":"IF(O43=1,$E$4,IF(O43=2,$I$4,(IF(O43=3,$M$4,\"\"))))","v":""},{"$f":"IF(O43=1,$G$4,IF(O43=2,$K$4,(IF(O43=3,$O$4,\"\"))))","v":""},{"$f":"DEGREES(ATAN(1/(Q43)))","v":{"$error":"#VALUE!"}},{"$f":"DEGREES(ATAN(1/(R43)))","v":{"$error":"#VALUE!"}},{"$f":"IF(O43=1,IF($F$4=\"---\",0,$F$4),IF(O43=2,IF($J$4=\"---\",0,$J$4),(IF(O43=3,IF($N$4=\"---\",0,$N$4),0))))","v":0},null,{"$f":"IF(X43=0,\"\",N43/((0.5*X43^2*(Q43+R43))+(U43*X43)))","v":""},null,{"$f":"((0.5*(X43^2)*(Q43+R43)+(U43*X43))*((((0.5*(X43^2)*(Q43+R43))+(U43*X43))/((X43/SIN(RADIANS(S43)))+(X43/SIN(RADIANS(T43)))+U43))^(2/3))*(P43^0.5)*1.486)/$W$6","v":{"$error":"#VALUE!"}},{"$f":"((0.5*(AC43^2)*(Q43+R43)+(U43*AC43))*((((0.5*(AC43^2)*(Q43+R43))+(U43*AC43))/((AC43/SIN(RADIANS(S43)))+(AC43/SIN(RADIANS(T43)))+U43))^(2/3))*(P43^0.5)*1.486)/0.05","v":{"$error":"#VALUE!"}},{"$f":"IF(AC43=0,0,N43/((0.5*AC43^2*(Q43+R43))+(U43*AC43)))","v":0},{"$f":"IF(AC43=0,\"\",AC43)","v":""},null,{"$f":"((0.5*(AG43^2)*(Q43+R43)+(U43*AG43))*((((0.5*(AG43^2)*(Q43+R43))+(U43*AG43))/((AG43/SIN(RADIANS(S43)))+(AG43/SIN(RADIANS(T43)))+U43))^(2/3))*(P43^0.5)*1.486)/0.015","v":{"$error":"#VALUE!"}},{"$f":"IF(AG43=0,0,N43/((0.5*AG43^2*(Q43+R43))+(U43*AG43)))","v":0},{"$f":"IF(AG43=0,\"\",AG43)","v":""},null,null,{"$f":"IF(AM43=0,0,AK43/((0.5*AM43^2*(Q43+R43))+(U43*AM43)))","v":0},{"$f":"IF(AM43=0,0,$AQ$49/(L43+$AQ$50)^$AQ$51)","v":0},{"$f":"IF(AM43=0,0,AJ43*K43)","v":0},{"$f":"IF(AM43=0,\"\",AM43)","v":""},null,null,{"$f":"IF(AH43=0,0,IF(ABS((AH43-AK43)/AK43)<0.01,\" \",\"Data has changed please recalculate all\"))","v":0},null,null,null,null,null,0.05]
[null,null,null,null,null,null,null,null,null,null,null,null,null,null,null,null,null,null,null,null,null,null,null,null,null,null,null,null,null,null,null,null,null,null,null,null,null,null,null,null,{"$f":"IF(ABS((AD44-N44)/N44)<0.02,IF(ABS((AH44-AK44)/AK44)<0.02,\" \",\"Data has changed please recalculate all\"),\"Data has changed please recalculate all\")","v":{"$error":"#DIV/0!"}},null,null,null,null,null,1.4999999999999999E-2,null,null,{"$f":"AY43","v":0}]
[null,null,null,null,null,null,null,null,null,null,null,null,null,null,null,null,null,null,null,null,null,null,null,null,null,null,null,null,null,null,null,null,null,null,null,null,null,null,null,null,null,null,null,null,null,null,null,null,null,0]
["DI(XX)",null,null,null,null,null,null,null,null,null,null,null,null,null,null,null,null,null,null,null,null,null,null,null,null,null,null,null,null,null,"Q10 n=.03",null,null,{"$f":"IF(AM46=0,0,((0.5*(AM46^2)*(Q46+R46)+(U46*AM46))*((((0.5*(AM46^2)*(Q46+R46))+(U46*AM46))/((AM46/SIN(RADIANS(S46)))+(AM46/SIN(RADIANS(T46)))+U46))^(2/3))*(P46^0.5)*1.486)/$W$6)","v":0},null,null,null,null,null,"Arlington","Rainfall Data:",null,null,null,null,null,null,null,null,0]
[null,null,null,null,null,null,null,null,null,null,null,null,null,null,null,null,null,null,null,null,null,null,null,null,null,null,null,null,null,null,"Q10 n=.05",null,null,{"$f":"IF(AM47=0,0,((0.5*(AM47^2)*(Q47+R47)+(U47*AM47))*((((0.5*(AM47^2)*(Q47+R47))+(U47*AM47))/((AM47/SIN(RADIANS(S47)))+(AM47/SIN(RADIANS(T47)))+U47))^(2/3))*(P47^0.5)*1.486)/0.05)","v":0},null,null,null,null,null,"Accomack",null,"R.I., yrs.","R.I., yrs.",null,null,null,null,null,null,0]
[null,null,null,null,null,null,null,null,null,null,null,null,null,null,null,null,null,null,null,null,null,null,null,null,null,null,null,null,null,null,"Q10 n=.015",null,null,{"$f":"IF(AM48=0,0,((0.5*(AM48^2)*(Q48+R48)+(U48*AM48))*((((0.5*(AM48^2)*(Q48+R48))+(U48*AM48))/((AM48/SIN(RADIANS(S48)))+(AM48/SIN(RADIANS(T48)))+U48))^(2/3))*(P48^0.5)*1.486)/0.015)","v":0},null,null,null,null,null,"Albemarle","Factor",2,10,null,null,null,null,null,null,0]
[null,null,null,null,null,null,null,null,null,null,null,null,null,null,null,null,null,null,null,null,null,null,null,null,null,null,null,null,null,null,null,null,null,null,null,null,null,null,null,"Alleghany","B",{"$f":"VLOOKUP(AN3,'BDE Values'!A3:K117,3,FALSE)","v":{"$error":"#N/A"}},{"$f":"VLOOKUP(AN3,'BDE Values'!A3:K117,9,FALSE)","v":{"$error":"#N/A"}},null,null,null,null,null,null,0]
[null,null,null,null,null,null,null,null,null,null,null,null,null,null,null,null,null,null,null,null,null,null,null,null,null,null,null,null,null,null,null,null,null,null,null,null,null,null,null,"Amelila","D",{"$f":"VLOOKUP(AN3,'BDE Values'!A3:K117,4,FALSE)","v":{"$error":"#N/A"}},{"$f":"VLOOKUP(AN3,'BDE Values'!A3:K117,10,FALSE)","v":{"$error":"#N/A"}},null,null,null,null,null,null,0]
[null,null,null,null,null,null,null,null,null,null,null,null,null,null,null,null,null,null,null,null,null,null,null,null,null,null,null,null,null,null,null,null,null,null,null,null,null,null,null,"Amherst","E",{"$f":"VLOOKUP(AN3,'BDE Values'!A3:K117,5,FALSE)","v":{"$error":"#N/A"}},{"$f":"VLOOKUP(AN3,'BDE Values'!A3:K117,11,FALSE)","v":{"$error":"#N/A"}},null,null,null,null,null,null,0]
[null,null,null,null,null,null,null,null,null,null,null,null,null,null,null,null,null,null,null,null,null,null,null,null,null,null,null,null,null,null,null,null,null,null,null,null,null,null,null,"Appomattox",null,null,null,null,null,null,null,null,null,0]
[null,null,null,null,null,null,null,null,null,null,null,null,null,null,null,null,null,null,null,null,null,null,null,null,null,null,null,null,null,null,null,null,null,null,null,null,null,null,null,"Augusta",null,null,null,null,null,null,null,null,null,0]
[null,null,null,null,null,null,null,null,null,null,null,null,null,null,null,null,null,null,null,null,null,null,null,null,null,null,null,null,null,null,null,null,null,null,null,null,null,null,null,"Bath",null,null,null,null,null,null,null,null,null,0]
[null,null,null,null,null,null,null,null,null,null,null,null,null,null,null,null,null,null,null,null,null,null,null,null,null,null,null,null,null,null,null,null,null,null,null,null,null,null,null,"Bedford",null,null,null,null,null,null,null,null,null,0]
[null,null,null,null,null,null,null,null,null,null,null,null,null,null,null,null,null,null,null,null,null,null,null,null,null,null,null,null,null,null,null,null,null,null,null,null,null,null,null,"Bland",null,null,null,null,null,null,null,null,null,0]
[null,null,null,null,null,null,null,null,null,null,null,null,null,null,null,null,null,null,null,null,null,null,null,null,null,null,null,null,null,null,null,null,null,null,null,null,null,null,null,"Botetourt",null,null,null,null,null,null,null,null,null,0]
[null,null,null,null,null,null,null,null,null,null,null,null,null,null,null,null,null,null,null,null,null,null,null,null,null,null,null,null,null,null,null,null,null,null,null,null,null,null,null,"Bristol",null,null,null,null,null,null,null,null,null,0]
[null,null,null,null,null,null,null,null,null,null,null,null,null,null,null,null,null,null,null,null,null,null,null,null,null,null,null,null,null,null,null,null,null,null,null,null,null,null,null,"Brunswick",null,null,null,null,null,null,null,null,null,0]
[null,null,null,null,null,null,null,null,null,null,null,null,null,null,null,null,null,null,null,null,null,null,null,null,null,null,null,null,null,null,null,null,null,null,null,null,null,null,null,"Buchanan",null,null,null,null,null,null,null,null,null,0]
[null,null,null,null,null,null,null,null,null,null,null,null,null,null,null,null,null,null,null,null,null,null,null,null,null,null,null,null,null,null,null,null,null,null,null,null,null,null,null,"Buckingham",null,null,null,null,null,null,null,null,null,0]
[null,null,null,null,null,null,null,null,null,null,null,null,null,null,null,null,null,null,null,null,null,null,null,null,null,null,null,null,null,null,null,null,null,null,null,null,null,null,null,"Campbell",null,null,null,null,null,null,null,null,null,0]
[null,null,null,null,null,null,null,null,null,null,null,null,null,null,null,null,null,null,null,null,null,null,null,null,null,null,null,null,null,null,null,null,null,null,null,null,null,null,null,"Caroline",null,null,null,null,null,null,null,null,null,0]
[null,null,null,null,null,null,null,null,null,null,null,null,null,null,null,null,null,null,null,null,null,null,null,null,null,null,null,null,null,null,null,null,null,null,null,null,null,null,null,"Carroll",null,null,null,null,null,null,null,null,null,0]
[null,null,null,null,null,null,null,null,null,null,null,null,null,null,null,null,null,null,null,null,null,null,null,null,null,null,null,null,null,null,null,null,null,null,null,null,null,null,null,"Charles City",null,null,null,null,null,null,null,null,null,0]
[null,null,null,null,null,null,null,null,null,null,null,null,null,null,null,null,null,null,null,null,null,null,null,null,null,null,null,null,null,null,null,null,null,null,null,null,null,null,null,"Charlotte",null,null,null,null,null,null,null,null,null,0]
[null,null,null,null,null,null,null,null,null,null,null,null,null,null,null,null,null,null,null,null,null,null,null,null,null,null,null,null,null,null,null,null,null,null,null,null,null,null,null,"Charlottesville (city)",null,null,null,null,null,null,null,null,null,{"$f":"AY66","v":0}]
[null,null,null,null,null,null,null,null,null,null,null,null,null,null,null,null,null,null,null,null,null,null,null,null,null,null,null,null,null,null,null,null,null,null,null,null,null,null,null,"Chesapeake (city)",null,null,null,null,null,null,null,null,null,0]
[null,null,null,null,null,null,null,null,null,null,null,null,null,null,null,null,null,null,null,null,null,null,null,null,null,null,null,null,null,null,null,null,null,null,null,null,null,null,null,"Chesterfield"]
[null,null,null,null,null,null,null,null,null,null,null,null,null,null,null,null,null,null,null,null,null,null,null,null,null,null,null,null,null,null,null,null,null,null,null,null,null,null,null,"Clarke"]
[null,null,null,null,null,null,null,null,null,null,null,null,null,null,null,null,null,null,null,null,null,null,null,null,null,null,null,null,null,null,null,null,null,null,null,null,null,null,null,"Craig"]
[null,null,null,null,null,null,null,null,null,null,null,null,null,null,null,null,null,null,null,null,null,null,null,null,null,null,null,null,null,null,null,null,null,null,null,null,null,null,null,"Culpeper"]
[null,null,null,null,null,null,null,null,null,null,null,null,null,null,null,null,null,null,null,null,null,null,null,null,null,null,null,null,null,null,null,null,null,null,null,null,null,null,null,"Cumberland"]
[null,null,null,null,null,null,null,null,null,null,null,null,null,null,null,null,null,null,null,null,null,null,null,null,null,null,null,null,null,null,null,null,null,null,null,null,null,null,null,"Danville (city)"]
[null,null,null,null,null,null,null,null,null,null,null,null,null,null,null,null,null,null,null,null,null,null,null,null,null,null,null,null,null,null,null,null,null,null,null,null,null,null,null,"Dickenson"]
[null,null,null,null,null,null,null,null,null,null,null,null,null,null,null,null,null,null,null,null,null,null,null,null,null,null,null,null,null,null,null,null,null,null,null,null,null,null,null,"Dinwiddie"]
[null,null,null,null,null,null,null,null,null,null,null,null,null,null,null,null,null,null,null,null,null,null,null,null,null,null,null,null,null,null,null,null,null,null,null,null,null,null,null,"Essex"]
[null,null,null,null,null,null,null,null,null,null,null,null,null,null,null,null,null,null,null,null,null,null,null,null,null,null,null,null,null,null,null,null,null,null,null,null,null,null,null,"Fairfax"]
[null,null,null,null,null,null,null,null,null,null,null,null,null,null,null,null,null,null,null,null,null,null,null,null,null,null,null,null,null,null,null,null,null,null,null,null,null,null,null,"Fauquier"]
[null,null,null,null,null,null,null,null,null,null,null,null,null,null,null,null,null,null,null,null,null,null,null,null,null,null,null,null,null,null,null,null,null,null,null,null,null,null,null,"Floyd"]
[null,null,null,null,null,null,null,null,null,null,null,null,null,null,null,null,null,null,null,null,null,null,null,null,null,null,null,null,null,null,null,null,null,null,null,null,null,null,null,"Fluvanna"]
[null,null,null,null,null,null,null,null,null,null,null,null,null,null,null,null,null,null,null,null,null,null,null,null,null,null,null,null,null,null,null,null,null,null,null,null,null,null,null,"Franklin"]
[null,null,null,null,null,null,null,null,null,null,null,null,null,null,null,null,null,null,null,null,null,null,null,null,null,null,null,null,null,null,null,null,null,null,null,null,null,null,null,"Frederick"]
[null,null,null,null,null,null,null,null,null,null,null,null,null,null,null,null,null,null,null,null,null,null,null,null,null,null,null,null,null,null,null,null,null,null,null,null,null,null,null,"Fredericksburg (city)"]
[null,null,null,null,null,null,null,null,null,null,null,null,null,null,null,null,null,null,null,null,null,null,null,null,null,null,null,null,null,null,null,null,null,null,null,null,null,null,null,"Giles"]
[null,null,null,null,null,null,null,null,null,null,null,null,null,null,null,null,null,null,null,null,null,null,null,null,null,null,null,null,null,null,null,null,null,null,null,null,null,null,null,"Gloucester"]
[null,null,null,null,null,null,null,null,null,null,null,null,null,null,null,null,null,null,null,null,null,null,null,null,null,null,null,null,null,null,null,null,null,null,null,null,null,null,null,"Goochland"]
[null,null,null,null,null,null,null,null,null,null,null,null,null,null,null,null,null,null,null,null,null,null,null,null,null,null,null,null,null,null,null,null,null,null,null,null,null,null,null,"Grayson"]
[null,null,null,null,null,null,null,null,null,null,null,null,null,null,null,null,null,null,null,null,null,null,null,null,null,null,null,null,null,null,null,null,null,null,null,null,null,null,null,"Greene"]
[null,null,null,null,null,null,null,null,null,null,null,null,null,null,null,null,null,null,null,null,null,null,null,null,null,null,null,null,null,null,null,null,null,null,null,null,null,null,null,"Greensville"]
[null,null,null,null,null,null,null,null,null,null,null,null,null,null,null,null,null,null,null,null,null,null,null,null,null,null,null,null,null,null,null,null,null,null,null,null,null,null,null,"Halifax"]
[null,null,null,null,null,null,null,null,null,null,null,null,null,null,null,null,null,null,null,null,null,null,null,null,null,null,null,null,null,null,null,null,null,null,null,null,null,null,null,"Hampton (city)"]
[null,null,null,null,null,null,null,null,null,null,null,null,null,null,null,null,null,null,null,null,null,null,null,null,null,null,null,null,null,null,null,null,null,null,null,null,null,null,null,"Hanover"]
[null,null,null,null,null,null,null,null,null,null,null,null,null,null,null,null,null,null,null,null,null,null,null,null,null,null,null,null,null,null,null,null,null,null,null,null,null,null,null,"Harrisonburg (city)"]
[null,null,null,null,null,null,null,null,null,null,null,null,null,null,null,null,null,null,null,null,null,null,null,null,null,null,null,null,null,null,null,null,null,null,null,null,null,null,null,"Henrico"]
[null,null,null,null,null,null,null,null,null,null,null,null,null,null,null,null,null,null,null,null,null,null,null,null,null,null,null,null,null,null,null,null,null,null,null,null,null,null,null,"Henry"]
[null,null,null,null,null,null,null,null,null,null,null,null,null,null,null,null,null,null,null,null,null,null,null,null,null,null,null,null,null,null,null,null,null,null,null,null,null,null,null,"Highland"]
[null,null,null,null,null,null,null,null,null,null,null,null,null,null,null,null,null,null,null,null,null,null,null,null,null,null,null,null,null,null,null,null,null,null,null,null,null,null,null,"Isle of Wight"]
[null,null,null,null,null,null,null,null,null,null,null,null,null,null,null,null,null,null,null,null,null,null,null,null,null,null,null,null,null,null,null,null,null,null,null,null,null,null,null,"James City"]
[null,null,null,null,null,null,null,null,null,null,null,null,null,null,null,null,null,null,null,null,null,null,null,null,null,null,null,null,null,null,null,null,null,null,null,null,null,null,null,"King George"]
[null,null,null,null,null,null,null,null,null,null,null,null,null,null,null,null,null,null,null,null,null,null,null,null,null,null,null,null,null,null,null,null,null,null,null,null,null,null,null,"King & Queen"]
[null,null,null,null,null,null,null,null,null,null,null,null,null,null,null,null,null,null,null,null,null,null,null,null,null,null,null,null,null,null,null,null,null,null,null,null,null,null,null,"King William"]
[null,null,null,null,null,null,null,null,null,null,null,null,null,null,null,null,null,null,null,null,null,null,null,null,null,null,null,null,null,null,null,null,null,null,null,null,null,null,null,"Lancaster"]
[null,null,null,null,null,null,null,null,null,null,null,null,null,null,null,null,null,null,null,null,null,null,null,null,null,null,null,null,null,null,null,null,null,null,null,null,null,null,null,"Lee"]
[null,null,null,null,null,null,null,null,null,null,null,null,null,null,null,null,null,null,null,null,null,null,null,null,null,null,null,null,null,null,null,null,null,null,null,null,null,null,null,"Lexington (city)"]
[null,null,null,null,null,null,null,null,null,null,null,null,null,null,null,null,null,null,null,null,null,null,null,null,null,null,null,null,null,null,null,null,null,null,null,null,null,null,null,"Loudoun"]
[null,null,null,null,null,null,null,null,null,null,null,null,null,null,null,null,null,null,null,null,null,null,null,null,null,null,null,null,null,null,null,null,null,null,null,null,null,null,null,"Louisa"]
[null,null,null,null,null,null,null,null,null,null,null,null,null,null,null,null,null,null,null,null,null,null,null,null,null,null,null,null,null,null,null,null,null,null,null,null,null,null,null,"Lunenburg"]
[null,null,null,null,null,null,null,null,null,null,null,null,null,null,null,null,null,null,null,null,null,null,null,null,null,null,null,null,null,null,null,null,null,null,null,null,null,null,null,"Lynchburg (city)"]
[null,null,null,null,null,null,null,null,null,null,null,null,null,null,null,null,null,null,null,null,null,null,null,null,null,null,null,null,null,null,null,null,null,null,null,null,null,null,null,"Madison"]
[null,null,null,null,null,null,null,null,null,null,null,null,null,null,null,null,null,null,null,null,null,null,null,null,null,null,null,null,null,null,null,null,null,null,null,null,null,null,null,"Martinsville (city)"]
[null,null,null,null,null,null,null,null,null,null,null,null,null,null,null,null,null,null,null,null,null,null,null,null,null,null,null,null,null,null,null,null,null,null,null,null,null,null,null,"Mathews"]
[null,null,null,null,null,null,null,null,null,null,null,null,null,null,null,null,null,null,null,null,null,null,null,null,null,null,null,null,null,null,null,null,null,null,null,null,null,null,null,"Mecklenburg"]
[null,null,null,null,null,null,null,null,null,null,null,null,null,null,null,null,null,null,null,null,null,null,null,null,null,null,null,null,null,null,null,null,null,null,null,null,null,null,null,"Middlesex"]
[null,null,null,null,null,null,null,null,null,null,null,null,null,null,null,null,null,null,null,null,null,null,null,null,null,null,null,null,null,null,null,null,null,null,null,null,null,null,null,"Montgomery"]
[null,null,null,null,null,null,null,null,null,null,null,null,null,null,null,null,null,null,null,null,null,null,null,null,null,null,null,null,null,null,null,null,null,null,null,null,null,null,null,"Nelson"]
[null,null,null,null,null,null,null,null,null,null,null,null,null,null,null,null,null,null,null,null,null,null,null,null,null,null,null,null,null,null,null,null,null,null,null,null,null,null,null,"New Kent"]
[null,null,null,null,null,null,null,null,null,null,null,null,null,null,null,null,null,null,null,null,null,null,null,null,null,null,null,null,null,null,null,null,null,null,null,null,null,null,null,"Newport News (city)"]
[null,null,null,null,null,null,null,null,null,null,null,null,null,null,null,null,null,null,null,null,null,null,null,null,null,null,null,null,null,null,null,null,null,null,null,null,null,null,null,"Norfolk (city)"]
[null,null,null,null,null,null,null,null,null,null,null,null,null,null,null,null,null,null,null,null,null,null,null,null,null,null,null,null,null,null,null,null,null,null,null,null,null,null,null,"Northampton"]
[null,null,null,null,null,null,null,null,null,null,null,null,null,null,null,null,null,null,null,null,null,null,null,null,null,null,null,null,null,null,null,null,null,null,null,null,null,null,null,"Northumberland"]
[null,null,null,null,null,null,null,null,null,null,null,null,null,null,null,null,null,null,null,null,null,null,null,null,null,null,null,null,null,null,null,null,null,null,null,null,null,null,null,"Nottoway"]
[null,null,null,null,null,null,null,null,null,null,null,null,null,null,null,null,null,null,null,null,null,null,null,null,null,null,null,null,null,null,null,null,null,null,null,null,null,null,null,"Orange"]
[null,null,null,null,null,null,null,null,null,null,null,null,null,null,null,null,null,null,null,null,null,null,null,null,null,null,null,null,null,null,null,null,null,null,null,null,null,null,null,"Page"]
[null,null,null,null,null,null,null,null,null,null,null,null,null,null,null,null,null,null,null,null,null,null,null,null,null,null,null,null,null,null,null,null,null,null,null,null,null,null,null,"Patrick"]
[null,null,null,null,null,null,null,null,null,null,null,null,null,null,null,null,null,null,null,null,null,null,null,null,null,null,null,null,null,null,null,null,null,null,null,null,null,null,null,"Pittsylvania"]
[null,null,null,null,null,null,null,null,null,null,null,null,null,null,null,null,null,null,null,null,null,null,null,null,null,null,null,null,null,null,null,null,null,null,null,null,null,null,null,"Powhatan"]
[null,null,null,null,null,null,null,null,null,null,null,null,null,null,null,null,null,null,null,null,null,null,null,null,null,null,null,null,null,null,null,null,null,null,null,null,null,null,null,"Prince Edward"]
[null,null,null,null,null,null,null,null,null,null,null,null,null,null,null,null,null,null,null,null,null,null,null,null,null,null,null,null,null,null,null,null,null,null,null,null,null,null,null,"Prince George"]
[null,null,null,null,null,null,null,null,null,null,null,null,null,null,null,null,null,null,null,null,null,null,null,null,null,null,null,null,null,null,null,null,null,null,null,null,null,null,null,"Prince William"]
[null,null,null,null,null,null,null,null,null,null,null,null,null,null,null,null,null,null,null,null,null,null,null,null,null,null,null,null,null,null,null,null,null,null,null,null,null,null,null,"Pulaski"]
[null,null,null,null,null,null,null,null,null,null,null,null,null,null,null,null,null,null,null,null,null,null,null,null,null,null,null,null,null,null,null,null,null,null,null,null,null,null,null,"Rappahannock"]
[null,null,null,null,null,null,null,null,null,null,null,null,null,null,null,null,null,null,null,null,null,null,null,null,null,null,null,null,null,null,null,null,null,null,null,null,null,null,null,"Richmond"]
[null,null,null,null,null,null,null,null,null,null,null,null,null,null,null,null,null,null,null,null,null,null,null,null,null,null,null,null,null,null,null,null,null,null,null,null,null,null,null,"Richmond (city)"]
[null,null,null,null,null,null,null,null,null,null,null,null,null,null,null,null,null,null,null,null,null,null,null,null,null,null,null,null,null,null,null,null,null,null,null,null,null,null,null,"Roanoke"]
[null,null,null,null,null,null,null,null,null,null,null,null,null,null,null,null,null,null,null,null,null,null,null,null,null,null,null,null,null,null,null,null,null,null,null,null,null,null,null,"Roanoke (city)"]
[null,null,null,null,null,null,null,null,null,null,null,null,null,null,null,null,null,null,null,null,null,null,null,null,null,null,null,null,null,null,null,null,null,null,null,null,null,null,null,"Rockbridge"]
[null,null,null,null,null,null,null,null,null,null,null,null,null,null,null,null,null,null,null,null,null,null,null,null,null,null,null,null,null,null,null,null,null,null,null,null,null,null,null,"Rockingham"]
[null,null,null,null,null,null,null,null,null,null,null,null,null,null,null,null,null,null,null,null,null,null,null,null,null,null,null,null,null,null,null,null,null,null,null,null,null,null,null,"Russell"]
[null,null,null,null,null,null,null,null,null,null,null,null,null,null,null,null,null,null,null,null,null,null,null,null,null,null,null,null,null,null,null,null,null,null,null,null,null,null,null,"Scott"]
[null,null,null,null,null,null,null,null,null,null,null,null,null,null,null,null,null,null,null,null,null,null,null,null,null,null,null,null,null,null,null,null,null,null,null,null,null,null,null,"Shenandoah"]
[null,null,null,null,null,null,null,null,null,null,null,null,null,null,null,null,null,null,null,null,null,null,null,null,null,null,null,null,null,null,null,null,null,null,null,null,null,null,null,"Smyth"]
[null,null,null,null,null,null,null,null,null,null,null,null,null,null,null,null,null,null,null,null,null,null,null,null,null,null,null,null,null,null,null,null,null,null,null,null,null,null,null,"Southampton"]
[null,null,null,null,null,null,null,null,null,null,null,null,null,null,null,null,null,null,null,null,null,null,null,null,null,null,null,null,null,null,null,null,null,null,null,null,null,null,null,"Spotsylvania"]
[null,null,null,null,null,null,null,null,null,null,null,null,null,null,null,null,null,null,null,null,null,null,null,null,null,null,null,null,null,null,null,null,null,null,null,null,null,null,null,"Stafford"]
[null,null,null,null,null,null,null,null,null,null,null,null,null,null,null,null,null,null,null,null,null,null,null,null,null,null,null,null,null,null,null,null,null,null,null,null,null,null,null,"Staunton (city)"]
[null,null,null,null,null,null,null,null,null,null,null,null,null,null,null,null,null,null,null,null,null,null,null,null,null,null,null,null,null,null,null,null,null,null,null,null,null,null,null,"Suffolk (city)"]
[null,null,null,null,null,null,null,null,null,null,null,null,null,null,null,null,null,null,null,null,null,null,null,null,null,null,null,null,null,null,null,null,null,null,null,null,null,null,null,"Surry"]
[null,null,null,null,null,null,null,null,null,null,null,null,null,null,null,null,null,null,null,null,null,null,null,null,null,null,null,null,null,null,null,null,null,null,null,null,null,null,null,"Sussex"]
[null,null,null,null,null,null,null,null,null,null,null,null,null,null,null,null,null,null,null,null,null,null,null,null,null,null,null,null,null,null,null,null,null,null,null,null,null,null,null,"Tazewell"]
[null,null,null,null,null,null,null,null,null,null,null,null,null,null,null,null,null,null,null,null,null,null,null,null,null,null,null,null,null,null,null,null,null,null,null,null,null,null,null,"Virginia Beach (city)"]
[null,null,null,null,null,null,null,null,null,null,null,null,null,null,null,null,null,null,null,null,null,null,null,null,null,null,null,null,null,null,null,null,null,null,null,null,null,null,null,"Warren"]
[null,null,null,null,null,null,null,null,null,null,null,null,null,null,null,null,null,null,null,null,null,null,null,null,null,null,null,null,null,null,null,null,null,null,null,null,null,null,null,"Washington"]
[null,null,null,null,null,null,null,null,null,null,null,null,null,null,null,null,null,null,null,null,null,null,null,null,null,null,null,null,null,null,null,null,null,null,null,null,null,null,null,"Westmoreland"]
[null,null,null,null,null,null,null,null,null,null,null,null,null,null,null,null,null,null,null,null,null,null,null,null,null,null,null,null,null,null,null,null,null,null,null,null,null,null,null,"Williamsburg (city)"]
[null,null,null,null,null,null,null,null,null,null,null,null,null,null,null,null,null,null,null,null,null,null,null,null,null,null,null,null,null,null,null,null,null,null,null,null,null,null,null,"Winchester (city)"]
[null,null,null,null,null,null,null,null,null,null,null,null,null,null,null,null,null,null,null,null,null,null,null,null,null,null,null,null,null,null,null,null,null,null,null,null,null,null,null,"Wise"]
[null,null,null,null,null,null,null,null,null,null,null,null,null,null,null,null,null,null,null,null,null,null,null,null,null,null,null,null,null,null,null,null,null,null,null,null,null,null,null,"Wythe"]
[null,null,null,null,null,null,null,null,null,null,null,null,null,null,null,null,null,null,null,null,null,null,null,null,null,null,null,null,null,null,null,null,null,null,null,null,null,null,null,"York"]

{"sheet":"BDE Values","index":1,"n_rows":119,"n_cols":20,"rows_kept":119,"cut":false,"hidden":false,"merged":[]}
[null,"B, D, & E factors for Virginia for determining rainfall intensity in the Rational and Modified Rational Methods (based on NOAA NW-14 Atlas data)"]
[null,null,null,"2-YR",null,null,"5-YR",null,null,"10-YR",null,null,"25-YR",null,null,"50-YR",null,null,"100-YR"]
["COUNTY/CITY","#","B","D","E","B","D","E","B","D","E","B","D","E","B","D","E","B","D","E"]
["Arlington","00",52.73,11.25,0.83,50.63,10.5,0.77,45.98,9.25,0.72,41.35,7.75,0.66,38.56,7,0.61,32.29,5,0.55000000000000004]
["Accomack","01",65.77,13,0.88,56.63,11.5,0.79,49.92,10,0.73,39.979999999999997,7.5,0.65,37.31,6.5,0.61,32.840000000000003,5.25,0.55000000000000004]
["Albemarle","02",49.02,10.5,0.82,55.71,11.5,0.8,46.95,9.5,0.73,40.11,7.75,0.66,35.68,6.5,0.61,31.09,5,0.55000000000000004]
["Alleghany","03",51.16,13.25,0.88,39.11,10,0.77,40.840000000000003,10,0.74,36.369999999999997,8.75,0.67,29.66,6.5,0.6,26.46,5,0.55000000000000004]
["Amelila","04",59.23,12.25,0.86,55.73,11.25,0.79,47.7,9.5,0.73,40.729999999999997,7.75,0.66,36.22,6.5,0.61,33.29,5.75,0.56000000000000005]
["Amherst","05",60.72,13,0.88,57.1,12,0.81,43.8,9.25,0.72,39.61,8,0.66,34.36,6.5,0.6,30.8,5.25,0.55000000000000004]
["Appomattox","06",51.76,11.5,0.84,54.03,11.25,0.8,47.13,10,0.73,40.72,8.25,0.67,34.36,6.5,0.6,30.14,5,0.55000000000000004]
["Augusta","07",46.46,12.25,0.85,44.03,10.75,0.79,41.63,10,0.74,32.39,7.25,0.64,32.479999999999997,7.25,0.62,27.18,5.25,0.55000000000000004]
["Bath","08",46.46,12.25,0.85,47.91,11.5,0.8,38.950000000000003,9.5,0.72,34.24,7.75,0.66,30.19,6.25,0.6,28.05,5.5,0.56000000000000005]
["Bedford","09",47.85,11.25,0.83,48.76,10.75,0.78,45.55,10,0.73,40.49,8.5,0.67,33.51,6.5,0.6,29.36,5,0.55000000000000004]
["Bland","10",36.340000000000003,10,0.81,41.14,10.75,0.78,38.520000000000003,9.75,0.73,32.99,7.75,0.66,29.71,6.5,0.6,26.71,5.25,0.55000000000000004]
["Botetourt","11",51.98,12.25,0.85,51.47,11.5,0.8,44.82,9.75,0.73,36.340000000000003,7.5,0.65,33.51,6.5,0.6,29.23,5,0.55000000000000004]
["Bristol","102",41.68,11.5,0.83,41.14,10.75,0.78,42.11,10.75,0.75,31.43,7.75,0.65,27.32,6,0.59,26.45,5.5,0.56000000000000005]
["Brunswick","12",62.82,12.25,0.85,55.69,10.5,0.78,49.74,9.25,0.72,41.54,7.25,0.65,40.85,7,0.62,33.99,5,0.55000000000000004]
["Buchanan","13",46.78,11.5,0.85,51.34,12.25,0.82,41.75,9.75,0.74,34.409999999999997,7.25,0.65,31.36,6,0.6,29.24,5,0.56000000000000005]
["Buckingham","14",54.24,11.5,0.85,54.8,11.5,0.8,44.53,9.25,0.72,39.479999999999997,7.75,0.66,33.090000000000003,6,0.59,30.63,5.25,0.55000000000000004]
["Campbell","15",46.46,12.25,0.85,44.03,10.75,0.79,41.63,10,0.74,32.39,7.25,0.64,32.479999999999997,7.25,0.62,27.18,5.25,0.55000000000000004]
["Caroline","16",65.88,12.75,0.88,58.28,11.5,0.8,51.24,10,0.74,39.770000000000003,7.25,0.65,36.119999999999997,6.25,0.6,32.97,5.25,0.55000000000000004]
["Carroll","17",54.24,11.5,0.85,52.48,10.75,0.79,48.34,10,0.74,38.909999999999997,7.75,0.65,35.14,6.5,0.61,30.77,5,0.55000000000000004]
["Charles City","18",61.04,11.5,0.85,55.05,10.5,0.77,52.12,9.75,0.73,42.4,7.5,0.65,39.29,6.5,0.61,34.58,5,0.55000000000000004]
["Charlotte","19",59.23,12.25,0.86,56.63,11.5,0.79,53.27,10.5,0.75,40.159999999999997,7.75,0.65,36.03,6.5,0.6,31.51,5,0.55000000000000004]
["Charlottesville (city)","104",49.02,10.5,0.82,55.71,11.5,0.8,46.95,9.5,0.73,40.11,7.75,0.66,35.68,6.5,0.61,31.09,5,0.55000000000000004]
["Chesapeake (city)","131",78.62,13,0.88,74.36,12.25,0.81,56.41,9.25,0.72,51.18,8.25,0.66,46.33,7,0.62,39.6,5.25,0.56000000000000005]
["Chesterfield","20",52.72,10.75,0.83,49.08,9.75,0.76,50.71,10,0.73,39.770000000000003,7.25,0.65,37.31,6.5,0.61,32.29,5,0.55000000000000004]
["Clarke","21",41.52,8.75,0.82,47.08,9,0.8,41.34,7.25,0.73,37.79,5.75,0.67,36.75,5,0.64,34.340000000000003,4,0.59]
["Craig","22",44.29,11.5,0.84,41.6,10.5,0.77,43.45,10.5,0.75,34.24,7.75,0.66,32.479999999999997,7.25,0.62,28.23,5.5,0.56000000000000005]
["Culpeper","23",58.3,12.25,0.86,56.46,11.5,0.8,45.25,9.25,0.72,42.03,8.25,0.67,34.33,6,0.59,32.380000000000003,5.25,0.56000000000000005]
["Cumberland","24",60.86,12.75,0.87,56.46,11.5,0.8,46.95,9.5,0.73,36.729999999999997,7,0.64,33.82,6,0.59,32.07,5.5,0.56000000000000005]
["Danville (city)","108",50.48,10.5,0.82,39.15,8.75,0.72,35.479999999999997,7.75,0.66,33.76,6.75,0.62,33.659999999999997,6.25,0.59,34.46,6,0.56999999999999995]
["Dickenson","25",53.26,12.75,0.87,44.86,10.75,0.79,44.28,10.5,0.75,35.17,7.75,0.65,35.11,7.25,0.62,29.39,5,0.55000000000000004]
["Dinwiddie","26",61.04,11.5,0.85,57.21,10.75,0.78,54.03,10,0.74,44.17,7.75,0.66,40.85,7,0.62,34.119999999999997,5,0.55000000000000004]
["Essex","28",61.14,12,0.86,59.79,11.5,0.8,51.93,10,0.74,41.19,7.5,0.65,40.520000000000003,7.25,0.62,33.950000000000003,5.25,0.56000000000000005]
["Fairfax","29",55.09,11.5,0.84,54.2,11,0.79,47.7,9.5,0.73,39.18,7.25,0.65,36.340000000000003,6.5,0.6,32.29,5,0.55000000000000004]
["Fauquier","30",54.24,11.5,0.85,54.8,11.5,0.8,48.34,10,0.74,41.03,8.25,0.66,35.44,6.5,0.6,31.38,5,0.55000000000000004]
["Floyd","31",60.86,12.75,0.87,53.32,10.75,0.79,46.45,9.25,0.72,40.409999999999997,7.75,0.65,38.96,7.25,0.62,32,5,0.55000000000000004]
["Fluvanna","32",60.98,12.75,0.88,51.1,10.75,0.79,47.55,10,0.74,38.6,7.75,0.65,34.590000000000003,6.5,0.61,30.33,5.25,0.55000000000000004]
["Franklin","33",54.24,11.5,0.85,52.48,10.75,0.79,48.34,10,0.74,38.909999999999997,7.75,0.65,35.14,6.5,0.61,30.77,5,0.55000000000000004]
["Frederick","34",44.35,9.5,0.84,45.41,8.5,0.79,43.33,7.75,0.75,37.020000000000003,5.75,0.67,35.19,4.75,0.63,33.81,3.75,0.59]
["Fredericksburg (city)","111",65.52,13.25,0.88,60.63,12,0.81,49.92,10,0.73,41.35,7.75,0.66,38.56,7,0.61,30.46,4.5,0.54]
["Giles","35",48.45,12.25,0.87,47.31,12,0.81,38.520000000000003,9.75,0.73,34.130000000000003,8.25,0.67,28.63,6.5,0.6,26.45,5.5,0.56000000000000005]
["Gloucester","36",60.97,11.5,0.84,60.74,11.25,0.79,53.07,9.5,0.73,43.62,7.5,0.65,40.14,6.5,0.6,35.979999999999997,5.25,0.55000000000000004]
["Goochland","37",59.23,12.25,0.86,55.73,11.25,0.79,47.7,9.5,0.73,40.729999999999997,7.75,0.66,36.22,6.5,0.61,31.51,5,0.55000000000000004]
["Grayson","38",43.44,11.5,0.84,47.31,12,0.81,38.69,9.5,0.73,33.619999999999997,7.75,0.66,32.479999999999997,7.25,0.62,27.65,5.25,0.55000000000000004]
["Greene","39",46.81,10.5,0.82,57.1,12,0.81,48.11,10,0.74,38.01,7.25,0.65,34.64,6.25,0.61,31.75,5.25,0.56000000000000005]
["Greensville","40",56.78,11.25,0.84,55.17,10.75,0.78,52.82,10,0.74,41.8,7.5,0.65,38.93,6.5,0.61,34.24,5.25,0.55000000000000004]
["Halifax","41",62.13,12.25,0.87,54.16,10.75,0.78,49.92,10,0.73,42.69,8.25,0.67,36.22,6.5,0.61,31.6,5.25,0.55000000000000004]
["Hampton (city)","114",64.31,11.5,0.85,64.94,11.5,0.8,57.19,10,0.74,44.49,7.25,0.64,41.77,6.5,0.6,37.020000000000003,5,0.55000000000000004]
["Hanover","42",55.94,11.5,0.84,53.49,10.75,0.78,47.18,9.25,0.72,39.979999999999997,7.5,0.65,36.53,6.5,0.6,32.68,5.25,0.56000000000000005]
["Harrisonburg (city)","115",43.01,11.25,0.84,44.71,10.5,0.8,39.71,9.25,0.74,32.17,6.5,0.65,28.85,5.25,0.6,28.34,4.75,0.56999999999999995]
["Henrico",43,55.94,11.5,0.84,53.49,10.75,0.78,47.18,9.25,0.72,39.979999999999997,7.5,0.65,36.53,6.5,0.6,32.68,5.25,0.56000000000000005]
["Henry",44,52.73,11.25,0.83,50.63,10.5,0.77,46.45,9.25,0.72,38.590000000000003,7.25,0.65,35.26,6.5,0.6,31.09,5,0.55000000000000004]
["Highland",45,36.67,10,0.81,34.94,8.93,0.74,34.82,8.4600000000000009,0.71,32.93,7.09,0.66,33.21,6.98,0.64,29.31,5.4,0.59]
["Isle of Wight",46,71.069999999999993,12.25,0.86,65.58,11.25,0.79,54.11,9.25,0.72,47.2,7.5,0.65,46.41,7.25,0.62,38.840000000000003,5.25,0.56000000000000005]
["James City",47,70.63,12.75,0.87,57.84,10.5,0.78,55.61,10,0.74,48.54,8.5,0.67,38.78,6,0.59,36.770000000000003,5.25,0.56000000000000005]
["King George",48,62.71,12.75,0.87,54.16,10.75,0.78,48.93,9.5,0.73,43.35,8.25,0.67,36.119999999999997,6.25,0.6,32.92,5,0.55000000000000004]
["King & Queen",49,65.739999999999995,12.75,0.87,49.83,9.75,0.76,50.43,9.5,0.73,44.67,8.25,0.66,37.200000000000003,6.25,0.6,32.799999999999997,4.75,0.55000000000000004]
["King William",50,62.9,12.25,0.86,51.8,10,0.77,51.51,10,0.73,41.19,7.5,0.65,40.520000000000003,7.25,0.62,33.21,5,0.55000000000000004]
["Lancaster",51,60.12,11.5,0.84,61.61,11.5,0.8,53.83,9.75,0.74,44.47,7.75,0.66,39.83,6.5,0.61,35.83,5.25,0.56000000000000005]
["Lee",52,51.05,12.25,0.86,45.7,10.75,0.78,38.28,8.75,0.71,38.78,8.5,0.67,34.619999999999997,6.75,0.61,31.95,5.75,0.56000000000000005]
["Lexington (city)","117",44.29,11.5,0.84,46.49,11.5,0.79,39.049999999999997,9.25,0.72,33.28,7.25,0.65,33.340000000000003,7.25,0.62,27.07,5,0.55000000000000004]
["Loudoun",53,61.4,12.25,0.88,44.34,8.75,0.76,46.93,8.75,0.74,41.48,7.25,0.67,36.119999999999997,5.5,0.61,33.25,4.5,0.56000000000000005]
["Louisa",54,60.86,12.75,0.87,61.41,12.25,0.82,45.25,9.25,0.72,40.11,7.75,0.66,35.68,6.5,0.61,31.05,5,0.55000000000000004]
["Lunenburg",55,60.15,12.25,0.85,49.08,9.75,0.76,50.71,10,0.73,39.770000000000003,7.25,0.65,39.340000000000003,7.25,0.62,32.5,5.25,0.55000000000000004]
["Lynchburg (city)","118",46.46,12.25,0.85,44.03,10.75,0.79,41.63,10,0.74,32.39,7.25,0.64,32.479999999999997,7.25,0.62,27.18,5.25,0.55000000000000004]
["Madison",56,54.24,11.5,0.85,53.17,10.75,0.79,46.61,9.25,0.73,41.85,8,0.67,37.33,6.5,0.62,33.01,5.25,0.56999999999999995]
["Martinsville (city)","120",52.73,11.25,0.83,50.63,10.5,0.77,46.45,9.25,0.72,38.590000000000003,7.25,0.65,35.26,6.5,0.6,31.09,5,0.55000000000000004]
["Mathews",57,65.67,12.25,0.86,58.83,10.75,0.78,52.39,9.25,0.72,48.24,8.25,0.67,40.450000000000003,6.5,0.6,37.1,5.25,0.56000000000000005]
["Mecklenburg",58,60.15,12.25,0.85,49.08,9.75,0.76,50.71,10,0.73,39.770000000000003,7.25,0.65,39.340000000000003,7.25,0.62,32.5,5.25,0.55000000000000004]
["Middlesex",59,72.66,13.25,0.88,61.46,11.25,0.79,52.39,9.75,0.73,45.09,7.75,0.66,40.369999999999997,6.5,0.61,36.119999999999997,5.25,0.56000000000000005]
["Montgomery",60,47.29,11.75,0.85,44.2,10.75,0.78,44.28,10.5,0.75,35.119999999999997,7.75,0.66,33.340000000000003,7.25,0.62,27.24,5,0.55000000000000004]
["Nelson",62,51.9,11.25,0.84,49.81,10.5,0.77,45.25,9.25,0.72,38.590000000000003,7.25,0.65,36.22,6.5,0.61,32.21,5.25,0.56000000000000005]
["New Kent",63,62.82,12.25,0.85,55.69,10.5,0.78,49.27,9.25,0.72,43.85,7.75,0.66,41.7,7.25,0.62,34.75,5.25,0.55000000000000004]
["Newport News (city)","121",64.31,11.5,0.85,64.94,11.5,0.8,57.19,10,0.74,44.49,7.25,0.64,41.77,6.5,0.6,37.020000000000003,5,0.55000000000000004]
["Norfolk (city)","122",60.83,11.25,0.84,64.03,11.5,0.8,51.92,9.25,0.72,47.96,8.25,0.66,39.29,6,0.59,37.1,5.25,0.56000000000000005]
["Northampton",65,61.14,12,0.86,51.8,10,0.77,50.43,9.5,0.73,41.8,7.5,0.65,40.85,7,0.62,34.58,5.25,0.55000000000000004]
["Northumberland",66,59.28,11.5,0.85,60.7,11.5,0.8,52.3,10,0.73,44.98,8.25,0.66,41.7,7.25,0.62,34.58,5.25,0.55000000000000004]
["Nottoway",67,62.14,12,0.86,55.67,10.75,0.79,53.53,10.5,0.75,39.770000000000003,7.25,0.65,36.11,6.25,0.6,32.5,5.25,0.55000000000000004]
["Orange",68,58.3,12.25,0.86,49.81,10.5,0.77,46.95,9.5,0.73,40.11,7.75,0.66,35.68,6.5,0.61,30.1,4.75,0.54]
["Page",69,39.07,8.5,0.82,41.8,8.25,0.78,40.619999999999997,7.5,0.74,38.83,6.5,0.68,32.659999999999997,4.5,0.62,34.36,4.5,0.6]
["Patrick",70,69.66,12.75,0.87,58.05,10.75,0.78,50,9.25,0.72,44.8,7.75,0.66,39.29,6.5,0.61,34.89,5.25,0.56000000000000005]
["Pittsylvania",71,50.48,10.5,0.82,39.15,8.75,0.72,35.479999999999997,7.75,0.66,33.76,6.75,0.62,33.659999999999997,6.25,0.59,34.46,6,0.56999999999999995]
["Powhatan",72,55.09,11.5,0.84,53.32,10.75,0.79,49.13,10,0.74,42.03,8.25,0.67,37.409999999999997,7,0.61,32.74,5.5,0.56000000000000005]
["Prince Edward",73,42.34,9.75,0.78,54.2,11,0.79,48.19,9.5,0.73,40.729999999999997,7.75,0.66,34.33,6,0.59,31.56,5.25,0.55000000000000004]
["Prince George",74,60.12,11.5,0.84,62.36,11.5,0.8,53.51,10,0.74,42.4,7.5,0.65,37.200000000000003,6,0.59,34.71,5.25,0.55000000000000004]
["Prince William",76,52.66,11.5,0.85,46.85,10,0.77,47.55,10,0.74,40.369999999999997,8.25,0.66,35.14,6.5,0.61,31.09,5.25,0.55000000000000004]
["Pulaski",77,45.53,12.25,0.86,47.31,12,0.81,34.6,8.5,0.71,34.79,8.25,0.67,28.35,6,0.59,26.38,5.25,0.55000000000000004]
["Rappahannock",78,60.32,12.25,0.87,49.28,9.75,0.78,48.73,9.25,0.74,40.590000000000003,7.25,0.66,38.67,6.5,0.62,33.549999999999997,4.75,0.56000000000000005]
["Richmond",79,62.9,12.25,0.86,59.05,11.5,0.8,53.81,10,0.74,44.32,8.25,0.66,39.21,6.75,0.61,34.42,5.25,0.56000000000000005]
["Richmond (city)",127,57.69,11.5,0.85,54.99,10.75,0.78,47.91,9.25,0.72,41.66,7.75,0.65,36.880000000000003,6.5,0.6,33.15,5.25,0.56000000000000005]
["Roanoke",80,47.62,11.5,0.85,47.08,10.75,0.79,47.73,10.75,0.75,38.78,8.5,0.67,34.840000000000003,7.25,0.62,29.06,5.25,0.55000000000000004]
["Roanoke (city)",128,47.62,11.5,0.85,47.08,10.75,0.79,47.73,10.75,0.75,38.78,8.5,0.67,34.840000000000003,7.25,0.62,29.06,5.25,0.55000000000000004]
["Rockbridge",81,44.29,11.5,0.84,46.49,11.5,0.79,39.049999999999997,9.25,0.72,33.28,7.25,0.65,33.340000000000003,7.25,0.62,27.07,5,0.55000000000000004]
["Rockingham",82,43.01,11.25,0.84,44.71,10.5,0.8,39.71,9.25,0.74,32.17,6.5,0.65,28.85,5.25,0.6,28.34,4.75,0.56999999999999995]
["Russell",83,46.78,11.5,0.85,43.36,10.75,0.78,38.950000000000003,9.5,0.72,37.76,8.75,0.67,31.1,6.5,0.6,28.76,5.25,0.56000000000000005]
["Scott",84,51.2,12.75,0.87,52.43,12.75,0.82,42.17,10,0.74,35.47,8,0.66,33.340000000000003,7.25,0.62,28.29,5.25,0.56000000000000005]
["Shenandoah",85,45.21,9.25,0.85,44.82,8.5,0.8,43.22,7.75,0.75,39.74,6.25,0.69,35.159999999999997,4.75,0.64,32.71,3.5,0.59]
["Smyth",86,52.17,12.75,0.87,44.2,10.75,0.78,46.01,10.75,0.75,36.42,8.25,0.66,34.520000000000003,7.25,0.62,29.06,5.25,0.55000000000000004]
["Southampton",87,67.400000000000006,12.25,0.86,65.69,11.5,0.8,54.56,9.5,0.73,44.83,7.5,0.65,41.23,6.5,0.6,38.909999999999997,5.75,0.56999999999999995]
["Spotsylvania",88,65.52,13.25,0.88,60.63,12,0.81,49.92,10,0.73,41.35,7.75,0.66,38.56,7,0.61,30.46,4.5,0.54]
["Stafford",89,65.52,13.25,0.88,60.63,12,0.81,49.92,10,0.73,41.35,7.75,0.66,38.56,7,0.61,30.46,4.5,0.54]
["Staunton (city)","132",46.46,12.25,0.85,44.03,10.75,0.79,41.63,10,0.74,32.39,7.25,0.64,32.479999999999997,7.25,0.62,27.18,5.25,0.55000000000000004]
["Suffolk (city)","133",78.092210210518715,12.812024549958972,0.87732339341445509,60.785558275523201,10.452730867994321,0.77332551168714159,54.21114023440353,9.018435147989317,0.71738741652733262,47.943538764674685,7.4132349798207322,0.65396497748175453,45.230923818214713,6.4651947276891324,0.61572297636664086,42.155925421834645,5.4231603334558987,0.57651864900033856]
["Surry",90,63.47,11.5,0.85,58.83,10.75,0.78,52.39,9.25,0.72,45.72,7.75,0.66,40.68,6.5,0.6,36.450000000000003,5.25,0.55000000000000004]
["Sussex",91,60.01,11.25,0.84,78.66,13.25,0.85,54.3,10,0.73,46.3,8.25,0.66,42.87,7.25,0.62,35.65,5.25,0.55000000000000004]
["Tazewell",92,44.3,12,0.85,47.7,12.25,0.82,36.89,9.25,0.73,34.19,8,0.66,29.66,6.25,0.6,27.24,5,0.55000000000000004]
["Virginia Beach (city)","134",61.66,11.25,0.84,61.78,10.75,0.79,56.67,10,0.73,49.63,8.25,0.67,40.32,6,0.59,37.86,5.25,0.56000000000000005]
["Warren",93,44.97,9.5,0.84,44.54,8.75,0.78,41.57,7.75,0.73,39.56,6.5,0.68,33.97,4.75,0.61,34.11,4.25,0.59]
["Washington",95,41.68,11.5,0.83,41.14,10.75,0.78,42.11,10.75,0.75,31.43,7.75,0.65,27.32,6,0.59,26.45,5.5,0.56000000000000005]
["Westmoreland",96,55.94,11.5,0.84,58.28,11.5,0.8,54.1,10.5,0.75,41.98,7.75,0.66,39.93,7.25,0.62,33.44,5.25,0.55000000000000004]
["Williamsburg (city)","137",70.63,12.75,0.87,57.84,10.5,0.78,55.61,10,0.74,48.54,8.5,0.67,38.78,6,0.59,36.770000000000003,5.25,0.56000000000000005]
["Winchester (city)","138",44.35,9.5,0.84,45.41,8.5,0.79,43.33,7.75,0.75,37.020000000000003,5.75,0.67,35.19,4.75,0.63,33.81,3.75,0.59]
["Wise",97,53.26,12.75,0.87,44.86,10.75,0.79,44.28,10.5,0.75,36.409999999999997,8,0.66,35.11,7.25,0.62,29.23,5,0.55000000000000004]
["Wythe",98,50.79,13,0.88,44.18,11.25,0.8,42.97,10.75,0.75,35.799999999999997,8.25,0.67,31.03,6.5,0.61,28.29,5.25,0.56000000000000005]
["York",99,69.540000000000006,12.75,0.87,58.89,10.75,0.78,55.09,10,0.73,45.72,7.75,0.66,40.68,6.5,0.6,38.409999999999997,5.75,0.56999999999999995]
[]
[null,null," Revised 10/26/07"]